Cogmind - Beta 13 @@@ ROGUE MODE // 2024.04.09 @ 13:35:10 Player: Oldman Pu Result: Destroyed by B-86 Titan with Hardcell Cannon Performance ------------- Evolutions (5) 2500 Regions Visited (15) 3000 Robots Destroyed (310) 1550 Value Destroyed (10888) 10888 Prototype IDs (24) 480 Alien Tech Used (0) 0 Bonus (1934) 1934 TOTAL SCORE: 20352 Bonus ------- High Alert Combat Kills 1578 Follower Combat Kills 56 Met Data Miner 300 Cogmind --------- Core Integrity 0/1000 Matter 300/300 Energy 197/200 System Corruption 10% Temperature Cool (11) Movement Treading (330) Ox2 Location -4/Proximity Caves Parts ------- > --- POWER (2) -------- Light Angular Momentum Engine Micro Fission Core > --- PROPULSION (4) --- Armored Medium Treads > --- UTILITY (7) ------ Improved Heat Sink Advanced Heat Sink Advanced Heat Sink High-capacity Storage Unit Advanced Target Analyzer Improved Power Shielding > --- WEAPON (4) ------- (None) > --- INVENTORY (20) --- Light Angular Momentum Engine Light Angular Momentum Engine Micro Fission Core Improved Heat Sink Advanced Heat Sink Compact Matter Pod (71) Improved Target Analyzer Improved Kinecellerator Improved Dynamic Insulation System Heavy Laser Heavy Laser Gauss Rifle Coil Gun KE Penetrator Mass Driver Mass Driver Greatsword Peak State ------------ > --- POWER ------------ Light Angular Momentum Engine Micro Fission Core > --- PROPULSION ------- Carbon-fiber Leg Carbon-fiber Leg Carbon-fiber Leg Field Propulsion Drive > --- UTILITY ---------- Improved Cryofiber Web Advanced Heat Sink Advanced Heat Sink Advanced Heat Sink High-capacity Storage Unit Advanced Melee Analysis Suite Improved Power Shielding > --- WEAPON ----------- Field Laser Heavy Particle Gun Gauss Rifle Bore Cannon > --- INVENTORY -------- Light Angular Momentum Engine Light Angular Momentum Engine Micro Fission Core Armored Medium Treads Advanced Heat Sink Improved Dynamic Insulation System Heavy Laser Heavy Laser Gauss Rifle KE Penetrator Mass Driver Mass Driver Greatsword [Rating: 78] Favorites ----------- Power Heavy Ion Engine Engine Heavy Ion Engine Power Core Micro Fission Core Propulsion Armored Wheel Treads Armored Treads Leg Carbon-fiber Leg Wheel Armored Wheel Flight Unit Field Propulsion Drive Utility High-capacity Storage Unit Device Advanced Heat Sink Storage High-capacity Storage Unit Processor Improved Targeting Computer Hackware Hacking Suite Protection Core Shielding Weapon Autogun Energy Gun Heavy Laser Energy Cannon Advanced Beam Cannon Ballistic Gun Autogun Ballistic Cannon Bore Cannon Build | -11 -10 -9 -8 -8 -7 -6 -6 -6 -6 -5 -5 -5 -5 -5 -4 ------- Run | Yrd Mat Mat Mat Sto Fac Fac Low Low Dat Pro Fac Upp Upp Zhi Pro Slots Evolved 10 | . . 2 2 . 2 2 . . . . 2 . . . . Power 1 | . . . 1 . . . . . . . . . . . . Propulsion 2 | . . . . . 1 1 . . . . . . . . . Utility 5 | . . 1 1 . 1 1 . . . . 1 . . . . Weapon 2 | . . 1 . . . . . . . . 1 . . . . Parts Attached 306 | 6 13 39 41 38 43 8 12 5 . 20 58 6 13 . 4 Power 44 | 1 3 8 4 4 8 . 1 2 . 2 10 . 1 . . Engine 38 | 1 3 8 4 4 8 . 1 2 . 1 5 . 1 . . Core 6 | . . . . . . . . . . 1 5 . . . . Reactor . | . . . . . . . . . . . . . . . . Propulsion 65 | 2 4 6 5 6 5 1 6 1 . 6 18 . 4 . 1 Treads 10 | 2 1 . . . 1 . 3 1 . 1 . . . . 1 Leg 11 | . . . . . . . . . . 3 5 . 3 . . Wheel 41 | . 3 6 5 6 4 1 3 . . . 13 . . . . Hover . | . . . . . . . . . . . . . . . . Flight 3 | . . . . . . . . . . 2 . . 1 . . Utility 97 | 1 4 8 12 12 19 5 3 1 . 7 13 4 6 . 2 Device 47 | . . 5 5 7 6 2 1 . . 3 10 2 5 . 1 Storage 5 | 1 2 . . . 1 . . . . . 1 . . . . Processor 6 | . . . . . 1 1 1 . . 1 . . 1 . 1 Hackware 1 | . . . . . 1 . . . . . . . . . . Protection 38 | . 2 3 7 5 10 2 1 1 . 3 2 2 . . . Artifact . | . . . . . . . . . . . . . . . . Weapon 100 | 2 2 17 20 16 11 2 2 1 . 5 17 2 2 . 1 Energy Gun 33 | . . 3 10 6 3 . 2 . . 1 5 2 . . 1 Energy Cannon 6 | . . . . 1 3 1 . . . 1 . . . . . Ballistic Gun 57 | 2 2 12 10 9 4 1 . 1 . 3 12 . 1 . . Ballistic Cannon 4 | . . 2 . . 1 . . . . . . . 1 . . Launcher . | . . . . . . . . . . . . . . . . Special Weapon . | . . . . . . . . . . . . . . . . Impact Weapon . | . . . . . . . . . . . . . . . . Slashing Weapon . | . . . . . . . . . . . . . . . . Piercing Weapon . | . . . . . . . . . . . . . . . . Special Melee Weapon . | . . . . . . . . . . . . . . . . Unidentified Prototypes 13 | . . 3 4 3 1 . . . . 1 1 . . . . Parts Lost 116 | . 2 6 7 5 14 1 7 6 . 11 32 5 9 . 11 Power 18 | . . 1 1 2 4 . . 1 . 2 6 1 . . . Propulsion 29 | . 1 . 1 2 1 . 3 2 . 3 8 2 2 . 4 Utility 38 | . 1 3 3 1 5 1 3 2 . 4 6 2 5 . 2 Weapon 31 | . . 2 2 . 4 . 1 1 . 2 12 . 2 . 5 Highest Loss Streak 17 | . 1 2 2 2 8 1 5 4 . 4 17 4 8 . 7 To Critical Strikes 1 | . . . . . 1 . . . . . . . . . . Average Slot Usage (%) 91 | . 90 97 99 99 87 83 86 79 73 87 90 92 97 100 89 Engine 11 | . 14 10 18 17 14 13 13 11 13 6 5 . 4 5 5 Core 1 | . . . . . . . . . . 3 3 8 5 5 5 Treads 3 | . 12 . . . . . 7 12 13 8 . . . . 4 Leg 2 | . . . . . . . . . . 7 3 . 16 17 5 Wheel 11 | . 12 20 17 17 16 13 9 1 . . 15 17 . . . Device 12 | . . 10 8 8 12 12 12 12 6 6 22 20 24 29 23 Storage 8 | . 14 11 9 9 7 6 6 6 6 6 11 8 5 5 5 Processor 2 | . . . . . 2 . . 6 6 11 . . 2 . 2 Protection 10 | . 8 10 17 17 8 18 15 6 6 12 2 9 5 5 5 Energy Gun 7 | . . 4 9 9 1 . 4 13 13 8 7 13 11 11 16 Energy Cannon 2 | . . . . . 12 12 7 . . 3 . . . . . Ballistic Gun 12 | . 28 25 17 16 6 6 6 6 6 5 12 8 5 5 4 Naked Turns . | . . . . . . . . . . . . . . . . Heaviest Build 102 | 13 52 64 78 78 90 100 102 94 84 84 96 76 82 80 80 Greatest Support 92 | 40 40 32 24 24 40 56 56 40 40 71 92 50 45 45 45 Greatest Overweight (x) 20 | . 3 5 6 6 3 1 8 4 2 4 6 3 3 1 20 Average Overweight (x) 1 | . . 2 2 3 2 1 1 2 2 1 1 1 1 1 3 Largest Inventory Capacity 20 | 8 20 20 20 20 20 20 20 20 20 20 20 20 20 20 20 Average Capacity 19 | 7 11 20 20 20 20 20 20 20 20 20 20 20 20 20 20 Most Carried 20 | . 9 20 20 20 20 20 20 18 18 20 20 20 20 17 18 Average Carried 17 | . 4 17 19 19 19 19 17 16 18 19 18 19 14 17 16 Final Capacity 20 | 8 20 20 20 20 20 20 20 20 20 20 20 20 20 20 20 Final Carried 20 | . 9 20 20 20 18 20 13 18 18 20 20 20 17 17 18 Class Distribution -------------------- 40% | Tank 28% | Scavenger-Tank 22% | Scavenger-Gunner 5% | Mutant Dominant Class ---------------- Mutant | -10/Materials Tank | -9/Materials Tank | -8/Materials Tank | -8/Storage Tank | -7/Factory Tank | -6/Factory Scavenger-Tank | -6/Lower Caves Scavenger-Gunner | -6/Lower Caves Scavenger-Gunner | -6/Data Miner Scavenger-Gunner | -5/Proximity Caves Scavenger-Tank | -5/Factory Scavenger-Gunner | -5/Upper Caves Scavenger-Tank | -5/Upper Caves Scavenger-Tank | -5/Zhirov Scavenger-Tank | -4/Proximity Caves Resources | -11 -10 -9 -8 -8 -7 -6 -6 -6 -6 -5 -5 -5 -5 -5 -4 ----------- Run | Yrd Mat Mat Mat Sto Fac Fac Low Low Dat Pro Fac Upp Upp Zhi Pro Matter Collected 8914 | 56 580 1325 1683 1184 1092 206 256 176 . 353 1369 229 217 . 188 Remotely . | . . . . . . . . . . . . . . . . Salvage Created 13982 | . 698 1908 2809 1946 1440 417 450 478 . 442 2485 518 202 . 189 Parts 723 | . 39 142 164 89 65 28 21 15 . 18 108 15 11 . 8 Haulers Intercepted 24 | . 2 6 6 6 2 . . . . . 2 . . . . Recyclers Shooed 5 | . 3 1 1 . . . . . . . . . . . . Parts Field Recycled . | . . . . . . . . . . . . . . . . Retrieved Matter . | . . . . . . . . . . . . . . . . Parts Self-Destructed 66 | . . . . . . . 24 8 . 11 . 9 8 . 6 Prevented 6 | . . . . . . . 3 . . . . 3 . . . Kills | -11 -10 -9 -8 -8 -7 -6 -6 -6 -6 -5 -5 -5 -5 -5 -4 ------- Run | Yrd Mat Mat Mat Sto Fac Fac Low Low Dat Pro Fac Upp Upp Zhi Pro Combat Hostiles Destroyed 228 | . 11 35 42 31 19 8 8 11 . 14 34 9 3 . 3 Guns 184 | . 11 28 42 30 8 2 2 11 . 10 28 9 2 . 1 Cannons 36 | . . 7 . . 11 5 5 . . 4 2 . 1 . 1 AOE 1 | . . . . . . . . . . . 1 . . . . Classes Destroyed 21 | . 5 6 4 . 2 . 2 2 . . . . . . . Worker 15 | . . 3 3 1 5 1 . . . . 2 . . . . Builder 5 | . . 1 1 . 1 . . . . . 2 . . . . Tunneler 1 | . . . 1 . . . . . . . . . . . . Hauler 24 | . 2 6 6 6 2 . . . . . 2 . . . . Recycler 15 | . 3 2 5 . 3 . . . . . 2 . . . . Minesweeper 1 | . . . . . . . 1 . . . . . . . . Operator 3 | . . 1 1 1 . . . . . . . . . . . Watcher 18 | . 1 5 5 2 1 1 . . . . 3 . . . . Swarmer 46 | . 3 9 6 . . 3 5 4 . 11 4 1 . . . Grunt 101 | . 8 14 17 21 8 2 1 3 . 2 18 7 . . . Brawler 4 | . . 1 1 . 1 . . 1 . . . . . . . Duelist 8 | . . 2 3 . 2 . . . . . 1 . . . . Protector 1 | . . . 1 . . . . . . . . . . . . Sentry 38 | . . 9 8 9 4 1 1 1 . 1 2 1 1 . . Specialist 4 | . . . 4 . . . . . . . . . . . . Hunter 12 | . . . 2 1 1 1 . . . . 5 . . . 2 Programmer 9 | . . . . . 2 1 . . . . 4 . 1 . 1 Heavy 1 | . . . . . 1 . . . . . . . . . . Behemoth 2 | . . . . . . . 1 . . . . . 1 . . Thief 1 | . . . . . . . . 1 . . . . . . . Mutant 1 | . . . . . . . . 1 . . . . . . . Best Kill Streak 11 | . 4 11 6 6 4 3 3 4 . 5 7 4 1 . 1 Combat Bots Only 6 | . 3 6 6 5 4 3 3 4 . 5 4 4 1 . 1 Max Kills in Single Turn 2 | . 1 2 2 2 2 2 1 1 . 2 2 1 1 . 1 Gunslinging 1 | . . 1 . 1 . . . . . . 1 . . . . Exploded 1 | . . . . . . . . . . . 1 . . . . Melee . | . . . . . . . . . . . . . . . . Uniques/NPCs Destroyed . | . . . . . . . . . . . . . . . . Combat | -11 -10 -9 -8 -8 -7 -6 -6 -6 -6 -5 -5 -5 -5 -5 -4 -------- Run | Yrd Mat Mat Mat Sto Fac Fac Low Low Dat Pro Fac Upp Upp Zhi Pro Hostile Shots Fired 1728 | . 55 195 200 143 220 82 121 69 . 180 286 34 66 . 77 Missed 493 | . 13 45 53 41 69 28 48 24 . 48 73 8 25 . 18 Damage Taken 20681 | . 538 1841 2427 1613 2867 606 1174 690 . 2425 3763 519 926 . 1292 Core 2550 | . 81 196 219 134 342 22 108 65 . 360 584 30 128 . 281 Absorbed by Shields 378 | . . . . . . 276 102 . . . . . . . . Redirected to Shielding 197 | . . . 45 29 11 1 22 . . . 21 22 6 . 40 Ignored by Resistances 160 | . . . . . . . . . . . 160 . . . . Regen/Repaired (Parts) 551 | . . 113 175 143 . 120 . . . . . . . . . Core Remaining (%) 56 | 100 67 51 . 35 51 . . . . 34 . . . . . Volleys Fired 817 | . 52 108 156 125 104 27 37 24 . 29 115 18 11 . 11 Largest 4 | . 2 3 3 3 3 3 3 3 . 3 4 4 4 . 4 Hottest 229 | . 40 102 159 159 163 166 179 179 . 183 229 220 220 . 203 Shots Fired 2427 | . 104 321 466 370 285 81 107 72 . 82 382 74 43 . 40 Gun 2096 | . 104 286 466 366 121 27 65 72 . 63 374 74 40 . 38 Cannon 331 | . . 35 . 4 164 54 42 . . 19 8 . 3 . 2 Launcher . | . . . . . . . . . . . . . . . . Special . | . . . . . . . . . . . . . . . . Kinetic 1442 | . 104 276 315 223 120 27 37 23 . 24 235 31 15 . 12 Thermal 985 | . . 45 151 147 165 54 70 49 . 58 147 43 28 . 28 Explosive . | . . . . . . . . . . . . . . . . Electromagnetic . | . . . . . . . . . . . . . . . . Robot Hit Streak 34 | . 7 13 19 16 18 7 12 34 . 9 19 18 17 . 8 Robot Miss Streak 8 | . 2 7 5 5 3 3 4 3 . 5 8 3 2 . 1 Penetration Max 1 | . . . 1 . . . . . . . 1 1 . . . Secondary Targets 21 | . . 5 6 2 . . . 2 . 1 3 2 . . . Max Gunslinging Chain 2 | . . 2 1 1 . . . 1 . 1 1 1 . . . Shots Hit Robots 1518 | . 69 185 293 241 196 43 59 51 . 48 244 46 24 . 19 Core Hits 626 | . 28 76 128 84 71 16 20 34 . 18 111 23 10 . 7 Critical Kills 7 | . . 1 2 1 . 1 . . . . 1 . . . 1 Critical Parts Destroyed 11 | . 1 2 4 . 1 . . . . . 3 . . . . Critical Strikes 54 | . 1 5 13 5 4 1 3 1 . 1 14 3 . . 3 Burn 33 | . . 2 6 4 2 . 2 1 . 1 10 3 . . 2 Meltdown 1 | . . . . . . 1 . . . . . . . . . Destroy 19 | . 1 3 7 1 1 . 1 . . . 4 . . . 1 Blast 1 | . . . . . 1 . . . . . . . . . . Melee Attacks . | . . . . . . . . . . . . . . . . Impact . | . . . . . . . . . . . . . . . . Slashing . | . . . . . . . . . . . . . . . . Piercing . | . . . . . . . . . . . . . . . . Sneak Attacks . | . . . . . . . . . . . . . . . . Combat Hostiles . | . . . . . . . . . . . . . . . . Follow-up Attacks . | . . . . . . . . . . . . . . . . Damage Inflicted 28071 | . 859 2839 4942 3941 3912 952 1198 1106 . 1255 5181 1020 551 . 315 Guns 23010 | . 859 2467 4942 3880 1379 410 662 1106 . 915 4598 1020 477 . 295 Cannons 4568 | . . 372 . 61 2402 542 536 . . 340 221 . 74 . 20 Explosions 493 | . . . . . 131 . . . . . 362 . . . . Melee . | . . . . . . . . . . . . . . . . Ramming . | . . . . . . . . . . . . . . . . Kinetic 15338 | . 859 2405 3186 2239 1603 410 469 269 . 196 2785 576 246 . 95 Thermal 12395 | . . 434 1756 1702 2178 542 729 837 . 1059 2189 444 305 . 220 Explosive 131 | . . . . . 131 . . . . . . . . . . Electromagnetic 207 | . . . . . . . . . . . 207 . . . . Impact . | . . . . . . . . . . . . . . . . Slashing . | . . . . . . . . . . . . . . . . Piercing . | . . . . . . . . . . . . . . . . Highest Corruption 17 | . 1 13 2 2 17 2 2 5 5 5 7 7 8 8 10 Average Corruption 4 | . 1 5 2 2 13 1 2 2 5 5 2 7 7 8 8 Corruption Purged . | . . . . . . . . . . . . . . . . Corruption Blocked 8 | . . . . . 8 . . . . . . . . . . Effects 351 | . . 39 32 21 65 3 14 23 6 43 16 18 42 . 29 Message Errors 78 | . . 5 8 6 14 2 6 3 1 10 4 3 12 . 4 Matter Fused 83 | . . 11 5 4 14 . 3 7 4 11 3 3 11 . 7 Heat Flow Errors 41 | . . 6 2 4 10 . 1 4 . 4 2 1 3 . 4 Energy Discharges 44 | . . 7 6 2 4 . 1 3 . 10 1 2 6 . 2 Parts Rejected 4 | . . . . 1 1 . 1 . . . . . 1 . . Parts Fused 4 | . . . . . 1 . . 1 . . 1 . 1 . . Data Loss (minor) 47 | . . 5 4 1 11 1 1 3 . 6 2 4 3 . 6 Data Loss (major) 12 | . . 3 1 . 2 . . 1 . . . 3 . . 2 Misfires 12 | . . 1 2 . 1 . 1 1 . 1 1 2 2 . . Alerts 9 | . . . 1 . 2 . . . 1 1 1 . 2 . 1 Misdirections 1 | . . . . . 1 . . . . . . . . . . Weapon Failures 16 | . . 1 3 3 4 . . . . . 1 . 1 . 3 Overload Shots . | . . . . . . . . . . . . . . . . Overflow Damage 137 | . . . . . 99 . 38 . . . . . . . . Projectiles 60 | . . . . . 22 . 38 . . . . . . . . Explosions 77 | . . . . . 77 . . . . . . . . . . Melee . | . . . . . . . . . . . . . . . . Knockbacks 12 | . . 4 . . 8 . . . . . . . . . . Impact . | . . . . . . . . . . . . . . . . Kinetic 8 | . . 2 . . 6 . . . . . . . . . . Secondary 4 | . . 2 . . 2 . . . . . . . . . . Self-Inflicted Damage 483 | . . . . . 186 210 . . . . 87 . . . . Shots 7 | . . . . . 2 2 . . . . 3 . . . . Rammed . | . . . . . . . . . . . . . . . . Targets Rammed . | . . . . . . . . . . . . . . . . Kicked . | . . . . . . . . . . . . . . . . Crushed . | . . . . . . . . . . . . . . . . Highest Temperature 507 | . 23 393 325 346 342 196 226 349 . 407 399 . 507 . 165 Average Temperature 89 | . 8 102 72 87 80 76 70 119 . 125 139 . 284 . 68 Received Heat Transfer 5027 | . 240 333 801 873 594 69 234 284 . 309 888 189 159 . 54 Effects 13 | . . 2 1 3 2 . 1 . . 3 . . 1 . . Shutdowns 1 | . . . . . . . . . . 1 . . . . . Energy Bleed 7 | . . 2 1 . 2 . 1 . . 1 . . . . . Interference 5 | . . . . 3 . . . . . 1 . . 1 . . Siege Activations . | . . . . . . . . . . . . . . . . Robots Corrupted 1 | . . . . . . . . . . . 1 . . . . Combat Hostiles 1 | . . . . . . . . . . . 1 . . . . Parts Fried 2 | . . . . . . . . . . . 2 . . . . Impact Corruptions . | . . . . . . . . . . . . . . . . Robots Melted 6 | . . . . 1 . 1 1 . . . 2 . . . 1 Combat Hostiles 6 | . . . . 1 . 1 1 . . . 2 . . . 1 Parts Melted 52 | . . 3 8 5 4 4 3 4 . . 14 1 2 . 4 Heat Transferred 25858 | . . 1258 4314 3824 4144 962 1469 1892 . 1211 4527 1110 555 . 592 Parts Sabotaged . | . . . . . . . . . . . . . . . . Parts Stolen 2 | . . . . . . . . 2 . . . . . . . Parts Stripped . | . . . . . . . . . . . . . . . . Power Chain Reactions . | . . . . . . . . . . . . . . . . Alert | -11 -10 -9 -8 -8 -7 -6 -6 -6 -6 -5 -5 -5 -5 -5 -4 ------- Run | Yrd Mat Mat Mat Sto Fac Fac Low Low Dat Pro Fac Upp Upp Zhi Pro Peak Influence 1075 | . 238 645 1075 974 768 437 . . . . 454 . . . . Initial 442 | . . 37 253 442 427 200 . . . . 47 . . . . Average 501 | . 114 457 687 746 466 277 . . . . 268 . . . . Maximum Alert Level 3 | . 1 2 3 3 3 2 . . . . 2 . . . . Low Security (%) 11 | 100 85 9 . . . . . . . . 21 . . . . Level 1 25 | . 14 24 13 . 33 90 . . . . 57 . . . . Level 2 42 | . . 66 42 37 63 9 . . . . 20 . . . . Level 3 21 | . . . 44 62 3 . . . . . . . . . . Level 4 . | . . . . . . . . . . . . . . . . Level 5 . | . . . . . . . . . . . . . . . . High Security . | . . . . . . . . . . . . . . . . Max Security . | . . . . . . . . . . . . . . . . Squads Dispatched 42 | . 3 3 11 5 7 3 . . . . 10 . . . . Investigation 15 | . 1 . 3 3 1 2 . . . . 5 . . . . Extermination 4 | . . . . . 2 1 . . . . 1 . . . . Reinforcement 15 | . 2 2 6 2 1 . . . . . 2 . . . . Assault 3 | . . 1 1 . 1 . . . . . . . . . . Garrison 5 | . . . 1 . 2 . . . . . 2 . . . . Intercept . | . . . . . . . . . . . . . . . . Searches Triggered . | . . . . . . . . . . . . . . . . Construction Impeded 1 | . . . . . . . . . . . 1 . . . . Haulers Reinforced . | . . . . . . . . . . . . . . . . Active Scanning Responses . | . . . . . . . . . . . . . . . . Cargo Convoy Interrupts 1 | . . . . . 1 . . . . . . . . . . Stealth | -11 -10 -9 -8 -8 -7 -6 -6 -6 -6 -5 -5 -5 -5 -5 -4 --------- Run | Yrd Mat Mat Mat Sto Fac Fac Low Low Dat Pro Fac Upp Upp Zhi Pro Distress Signals 16 | . 1 3 5 5 . 1 . . . . 1 . . . . Communications Jammed . | . . . . . . . . . . . . . . . . Distress Signals . | . . . . . . . . . . . . . . . . Times Spotted 308 | . 16 51 60 39 28 12 9 12 . 18 45 11 3 . 4 Peak Tracking Total 7 | . 3 7 5 5 4 3 5 4 . 5 6 5 2 . 2 Tactical Retreats 17 | . 1 1 6 3 1 . . . . 1 2 2 . . . Traps | -11 -10 -9 -8 -8 -7 -6 -6 -6 -6 -5 -5 -5 -5 -5 -4 ------- Run | Yrd Mat Mat Mat Sto Fac Fac Low Low Dat Pro Fac Upp Upp Zhi Pro Traps Triggered 16 | . 1 6 2 3 4 . . . . . . . . . . Indirectly . | . . . . . . . . . . . . . . . . Trap Hack Attempts . | . . . . . . . . . . . . . . . . Triggered . | . . . . . . . . . . . . . . . . Disarmed 2 | . . . . 2 . . . . . . . . . . . Reprogrammed . | . . . . . . . . . . . . . . . . Reused . | . . . . . . . . . . . . . . . . Traps Extracted . | . . . . . . . . . . . . . . . . Installed . | . . . . . . . . . . . . . . . . Triggered 7 | . . . . . 4 . 2 . . . . 1 . . . Machines | -11 -10 -9 -8 -8 -7 -6 -6 -6 -6 -5 -5 -5 -5 -5 -4 ---------- Run | Yrd Mat Mat Mat Sto Fac Fac Low Low Dat Pro Fac Upp Upp Zhi Pro Machines Disabled 25 | . . 2 4 3 3 3 . 1 . . 9 . . . . Max in Single Turn 2 | . . 1 1 1 1 2 . 1 . . 2 . . . . Garrison Access 3 | . . . 1 . 1 . . . . . 1 . . . . Machines Repaired . | . . . . . . . . . . . . . . . . Machines Dismantled . | . . . . . . . . . . . . . . . . Machines Sabotaged . | . . . . . . . . . . . . . . . . Overloaded Fab Kills . | . . . . . . . . . . . . . . . . Hacking | -11 -10 -9 -8 -8 -7 -6 -6 -6 -6 -5 -5 -5 -5 -5 -4 --------- Run | Yrd Mat Mat Mat Sto Fac Fac Low Low Dat Pro Fac Upp Upp Zhi Pro Machines Accessed 55 | . 3 7 12 9 8 3 1 . 4 . 8 . . . . Terminals 28 | . 3 4 7 6 4 1 1 . . . 2 . . . . Fabricators 5 | . . . . . 1 . . . . . 4 . . . . Repair Stations 7 | . . 1 2 2 1 1 . . . . . . . . . Recycling Units 1 | . . . . 1 . . . . . . . . . . . Scanalyzers 7 | . . 2 2 . 1 1 . . . . 1 . . . . Garrison Access 3 | . . . 1 . 1 . . . . . 1 . . . . Total Hacks 189 | . 9 20 46 27 18 16 1 . 31 . 21 . . . . Successful 116 | . 5 8 25 14 8 10 1 . 31 . 14 . . . . Failed 73 | . 4 12 21 13 10 6 . . . . 7 . . . . Catastrophic 11 | . 1 5 2 . 1 . . . . . 2 . . . . Database Lockouts . | . . . . . . . . . . . . . . . . Manual 1 | . . . . . . . 1 . . . . . . . . Terminals 75 | . 9 8 24 18 9 3 1 . . . 3 . . . . Fabricators 13 | . . . . . 3 . . . . . 10 . . . . Repair Stations 29 | . . 7 6 8 3 5 . . . . . . . . . Recycling Units 1 | . . . . 1 . . . . . . . . . . . Scanalyzers 34 | . . 5 12 . 2 8 . . . . 7 . . . . Garrison Access 6 | . . . 4 . 1 . . . . . 1 . . . . Terminal Hacks 59 | . 5 . 11 7 4 . 1 . 31 . . . . . . Record 15 | . . . 3 . . . 1 . 11 . . . . . . Part Schematic 13 | . . . . 1 . . . . 12 . . . . . . Robot Schematic 5 | . . . . . . . . . 5 . . . . . . Prototype ID Bank 4 | . . . 1 . . . . . 3 . . . . . . Open Door 2 | . . . . 2 . . . . . . . . . . . Branch Access Points 1 | . . . 1 . . . . . . . . . . . . Emergency Access Points 7 | . 3 . 1 2 1 . . . . . . . . . . Terminal Index 2 | . . . 1 . 1 . . . . . . . . . . Recycling Unit Index 1 | . . . . . 1 . . . . . . . . . . Alert Level 1 | . 1 . . . . . . . . . . . . . . Unreport Threat 1 | . . . . . 1 . . . . . . . . . . Locate Traps 4 | . 1 . 2 1 . . . . . . . . . . . Disarm Traps 1 | . . . . 1 . . . . . . . . . . . Hauler Manifests 2 | . . . 2 . . . . . . . . . . . . Fabricator Hacks 9 | . . . . . 2 . . . . . 7 . . . . Load Schematic 5 | . . . . . 1 . . . . . 4 . . . . Build 4 | . . . . . 1 . . . . . 3 . . . . Repair Station Hacks 18 | . . 4 4 6 1 3 . . . . . . . . . Scan Component 11 | . . 2 2 4 1 2 . . . . . . . . . Repair 7 | . . 2 2 2 . 1 . . . . . . . . . Recycling Unit Hacks 1 | . . . . 1 . . . . . . . . . . . Report Inventory 1 | . . . . 1 . . . . . . . . . . . Scanalyzer 26 | . . 4 9 . . 7 . . . . 6 . . . . Insert Component 13 | . . 2 5 . . 3 . . . . 3 . . . . Analyze 13 | . . 2 4 . . 4 . . . . 3 . . . . Garrison Access Hacks 3 | . . . 1 . 1 . . . . . 1 . . . . Seal Access 3 | . . . 1 . 1 . . . . . 1 . . . . Unauthorized Hacks . | . . . . . . . . . . . . . . . . Terminals . | . . . . . . . . . . . . . . . . Fabricators . | . . . . . . . . . . . . . . . . Repair Stations . | . . . . . . . . . . . . . . . . Recycling Units . | . . . . . . . . . . . . . . . . Scanalyzers . | . . . . . . . . . . . . . . . . Garrison Access . | . . . . . . . . . . . . . . . . Data Cores Recovered 1 | . . 1 . . . . . . . . . . . . . Used . | . . . . . . . . . . . . . . . . Hacking Detections 44 | . 3 7 10 6 7 3 1 . . . 7 . . . . Full Trace Events 13 | . 1 . 3 1 1 2 . . . . 5 . . . . Feedback Events 1 | . 1 . . . . . . . . . . . . . . Corruption 1 | . 1 . . . . . . . . . . . . . . Feedback Blocked . | . . . . . . . . . . . . . . . . Robot Schematics Acquired 5 | . . . . . . . . . 5 . . . . . . Robots Built 3 | . . . . . . . . . . . 3 . . . . Authchips . | . . . . . . . . . . . . . . . . Time 169 | . . . . . . . . . . . 169 . . . . Total Robot Build Rating 18 | . . . . . . . . . . . 18 . . . . Part Schematics Acquired 23 | . . 2 4 1 . 2 . . 12 . 2 . . . . Parts Built 6 | . . . . . 2 . . . . . 4 . . . . Authchips . | . . . . . . . . . . . . . . . . Time 82 | . . . . . 31 . . . . . 51 . . . . Total Part Build Rating 12 | . . . . . 4 . . . . . 8 . . . . Parts Repaired 7 | . . 2 2 2 . 1 . . . . . . . . . Time 233 | . . 64 64 54 . 51 . . . . . . . . . Parts Recycled . | . . . . . . . . . . . . . . . . Recycled Matter . | . . . . . . . . . . . . . . . . Retrieved Matter . | . . . . . . . . . . . . . . . . Retrieved Components . | . . . . . . . . . . . . . . . . Parts Scanalyzed 12 | . . 2 4 . . 3 . . . . 3 . . . . Part Schematics Acquired 10 | . . 2 4 . . 2 . . . . 2 . . . . Parts Damaged 1 | . . . . . . . . . . . 1 . . . . Bothacking | -11 -10 -9 -8 -8 -7 -6 -6 -6 -6 -5 -5 -5 -5 -5 -4 ------------ Run | Yrd Mat Mat Mat Sto Fac Fac Low Low Dat Pro Fac Upp Upp Zhi Pro Used RIF Installer . | . . . . . . . . . . . . . . . . Robots Hacked . | . . . . . . . . . . . . . . . . Non-combat . | . . . . . . . . . . . . . . . . Combat . | . . . . . . . . . . . . . . . . Robot Hacks Applied . | . . . . . . . . . . . . . . . . Relay Couplers Released . | . . . . . . . . . . . . . . . . Fabnet Peak Effective % . | . . . . . . . . . . . . . . . . Robots Rewired . | . . . . . . . . . . . . . . . . Allies Hacked . | . . . . . . . . . . . . . . . . Hacks Repelled . | . . . . . . . . . . . . . . . . Allies | -11 -10 -9 -8 -8 -7 -6 -6 -6 -6 -5 -5 -5 -5 -5 -4 -------- Run | Yrd Mat Mat Mat Sto Fac Fac Low Low Dat Pro Fac Upp Upp Zhi Pro Total Allies 4 | . . . . . . . . . . 1 3 . . . . Largest Group 3 | . . . . . . . . . . 1 3 . . . . Highest-Rated Group 96 | . . . . . . . . . . 96 90 . . . . Highest-Rated Ally 96 | . . . . . . . . . . 96 30 . . . . Total Orders . | . . . . . . . . . . . . . . . . Ally Attacks 28 | . . . . . . . . . . 28 . . . . . Total Damage 1293 | . . . . . . . . . . 1293 . . . . . Kills 1 | . . . . . . . . . . 1 . . . . . Allies Corrupted . | . . . . . . . . . . . . . . . . Allies Melted . | . . . . . . . . . . . . . . . . Intel | -11 -10 -9 -8 -8 -7 -6 -6 -6 -6 -5 -5 -5 -5 -5 -4 ------- Run | Yrd Mat Mat Mat Sto Fac Fac Low Low Dat Pro Fac Upp Upp Zhi Pro Robot Analysis Total . | . . . . . . . . . . . . . . . . Derelict Logs Recovered 6 | . . . . . . . 1 2 . 1 . 1 1 . . Drone Launches . | . . . . . . . . . . . . . . . . Drone Recoveries . | . . . . . . . . . . . . . . . . Exploration | -11 -10 -9 -8 -8 -7 -6 -6 -6 -6 -5 -5 -5 -5 -5 -4 ------------- Run | Yrd Mat Mat Mat Sto Fac Fac Low Low Dat Pro Fac Upp Upp Zhi Pro Turns Passed 19324 | 87 842 2236 2919 1819 1913 529 965 1729 334 1673 1424 596 1318 19 921 Spaces Moved 9753 | 53 495 1371 1652 853 1117 301 478 600 98 712 691 432 664 11 225 Core 15 | 5 . . . . . . . . . . 9 . . . 1 Treads 1124 | 48 185 . . . . . 111 448 98 228 . . . . 6 Legs 1440 | . . . . . . . . . . 484 72 . 655 11 218 Wheels 7174 | . 310 1371 1652 853 1117 301 367 152 . . 610 432 9 . . Hover . | . . . . . . . . . . . . . . . . Flight . | . . . . . . . . . . . . . . . . Fastest Speed 50 | 50 100 115 120 120 105 115 110 125 330 190 105 105 135 190 190 Average Speed 155 | 149 128 122 131 135 121 115 172 267 330 215 120 116 189 190 388 Slowest Speed 1050 | 160 160 165 180 180 145 115 490 410 330 490 350 135 190 190 1050 Overloaded Moves . | . . . . . . . . . . . . . . . . Propulsion Burnouts . | . . . . . . . . . . . . . . . . Robots Hopped . | . . . . . . . . . . . . . . . . Cave-ins Triggered . | . . . . . . . . . . . . . . . . Exploration Rate (%) 55 | 3 89 97 94 83 29 8 56 65 74 76 15 76 81 7 31 Regions Visited 15 Branch Regions 9 Pre-discovered Areas 2 | . . . . . . . . 1 1 . . . . . . Known Exits Taken 2 | . . . 1 . . . . 1 . . . . . . . Unknown Exits Taken 13 | 1 1 1 . 1 1 1 1 . 1 1 1 1 1 1 . Scrap Searched 11 | . . . . . . . 2 1 . 1 . 2 4 . 1 Spaces Dug . | . . . . . . . . . . . . . . . . Terrain Destroyed 137 | . . . . 3 68 27 5 1 . 10 19 4 . . . Melee . | . . . . . . . . . . . . . . . . Projectile 29 | . . . . 3 . . 5 1 . 10 6 4 . . . AOE 108 | . . . . . 68 27 . . . . 13 . . . . Terrain Rammed . | . . . . . . . . . . . . . . . . Walls Destroyed . | . . . . . . . . . . . . . . . . Machines Disabled . | . . . . . . . . . . . . . . . . Actions | -11 -10 -9 -8 -8 -7 -6 -6 -6 -6 -5 -5 -5 -5 -5 -4 --------- Run | Yrd Mat Mat Mat Sto Fac Fac Low Low Dat Pro Fac Upp Upp Zhi Pro Total 12219 | 58 598 1699 2078 1278 1474 430 533 669 110 785 1071 483 697 10 246 Wait 996 | . 27 128 162 210 151 73 5 33 13 17 152 18 4 . 3 Move 9738 | 52 494 1370 1651 852 1116 300 477 599 97 711 690 431 663 10 225 Hop . | . . . . . . . . . . . . . . . . Pick Up 170 | . 7 28 28 17 25 11 . 7 . 5 29 4 6 . 3 Fast Attach 90 | 6 1 5 10 10 14 4 3 2 . 9 19 3 4 . . Attach 99 | . 1 12 10 5 15 3 8 3 . 5 24 1 9 . 3 Detach 5 | . . . . . . 1 1 1 . . 2 . . . . Swap 117 | . 11 22 21 23 14 1 1 . . 6 15 2 . . 1 Drop 187 | . 5 26 40 36 35 10 1 . . 3 25 6 . . . Fire 817 | . 52 108 156 125 104 27 37 24 . 29 115 18 11 . 11 Melee . | . . . . . . . . . . . . . . . . Ram . | . . . . . . . . . . . . . . . . Kick . | . . . . . . . . . . . . . . . . Crush . | . . . . . . . . . . . . . . . . Escape Stasis . | . . . . . . . . . . . . . . . . Rewire . | . . . . . . . . . . . . . . . . Trap . | . . . . . . . . . . . . . . . . Miscellaneous . | . . . . . . . . . . . . . . . . Route ------- -11/Scrapyard -10/Materials (discovered 3 exits: *Mat x2 / [*Min]) -9/Materials (discovered 4 exits: *Mat x3 / [*Min]) -8/Materials (discovered 2 exits: *Fac / *Sto) -8/Storage -7/Factory -6/Factory -6/Lower Caves -6/Lower Caves -6/Data Miner -5/Proximity Caves -5/Factory -5/Upper Caves -5/Upper Caves -5/Zhirov -4/Proximity Caves History --------- Turn | Location | Event 32 | -11/Scrapyard | Discovered new exit (range 15) 88 | -11/Scrapyard | Entered Materials 318 | -10/Materials | Build established: Mutant 561 | -10/Materials | Discovered new exit (range 13) 712 | -10/Materials | Discovered new exit (range 16) 865 | -10/Materials | Discovered new exit (range 12) 930 | -10/Materials | Entered another Materials area 930 | -9/Materials | Evolved 2 slots: Utility x1, Weapon x1 1412 | -9/Materials | Build established: Tank 1441 | -9/Materials | Discovered new exit (range 15) 1652 | -9/Materials | Discovered new exit (range 15) 1911 | -9/Materials | Discovered new exit (range 4) 2530 | -9/Materials | First assault squad dispatched 2600 | -9/Materials | Repaired Arm. Wheel 2633 | -9/Materials | Repaired Arm. Wheel 3024 | -9/Materials | Discovered new exit (range 5) 3060 | -9/Materials | System corruption reached 10% 3166 | -9/Materials | Entered another Materials area 3166 | -8/Materials | Evolved 2 slots: Power x1, Utility x1 3308 | -8/Materials | Discovered new exit (range 10) 3606 | -8/Materials | Garrison activated, responded to threat 4009 | -8/Materials | Build established: Scavenger-Tank 4011 | -8/Materials | Repaired Arm. Wheel 4044 | -8/Materials | Repaired Arm. Wheel 4384 | -8/Materials | Build established: Tank 4465 | -8/Materials | Discovered new exit (range 14) 5166 | -8/Materials | First assault squad dispatched 6044 | -8/Materials | Identified exit to Storage 6085 | -8/Materials | Entered Storage 6426 | -8/Storage | Core integrity fell below 50% 7118 | -8/Storage | Discovered new exit (range 14) 7186 | -8/Storage | Repaired Arm. Wheel 7681 | -8/Storage | Repaired Broken Arm. Wheel 7904 | -8/Storage | Entered Factory 7904 | -7/Factory | Evolved 2 slots: Propulsion x1, Utility x1 7995 | -7/Factory | Garrison activated, responded to threat 8304 | -7/Factory | First assault squad dispatched 8402 | -7/Factory | Build established: Gunner 8495 | -7/Factory | System corruption reached 10% 8546 | -7/Factory | Lost 8 parts (2p3u3w) 8864 | -7/Factory | Fabricated Rnf. Ion Engine? 9015 | -7/Factory | Build established: Tank 9152 | -7/Factory | Cargo convoy interrupted 9758 | -7/Factory | Discovered new exit (range 5) 9817 | -7/Factory | Entered another Factory area 9817 | -6/Factory | Evolved 2 slots: Propulsion x1, Utility x1 10057 | -6/Factory | Repaired Adv. Beam Cannon 10188 | -6/Factory | Discovered new exit (range 6) 10346 | -6/Factory | Entered Lower Caves 10529 | -6/Lower Caves | Spotted B-75 Beast 10575 | -6/Lower Caves | Destroyed B-75 Beast 10707 | -6/Lower Caves | Attracted the attention of an 0b10 checkpoint 10775 | -6/Lower Caves | Lost 5 parts (2n2u1w) 11010 | -6/Lower Caves | Build established: Scavenger-Tank 11300 | -6/Lower Caves | Discovered new exit (range 8) 11301 | -6/Lower Caves | Learned Factory trap positions 11311 | -6/Lower Caves | Entered another Lower Caves area 11356 | -6/Lower Caves | Learned location of Extension (-5) 11398 | -6/Lower Caves | Attracted the attention of an 0b10 checkpoint 11502 | -6/Lower Caves | Identified exit to Data Miner 11576 | -6/Lower Caves | Lost 4 parts (1p2n1w) 11699 | -6/Lower Caves | Build established: Scavenger-Gunner 12797 | -6/Lower Caves | Attacked by a delusional Derelict stockpiling Unaware 13040 | -6/Lower Caves | Entered Data Miner 13040 | -6/Data Miner | Discovered new exit (range 6) 13103 | -6/Data Miner | Met Data Miner 13186 | -6/Data Miner | Learned location of Section 7 (-2) 13186 | -6/Data Miner | Acquired the access code to Warlord's prototype stash 13242 | -6/Data Miner | Received God Mode back door access code from Data Miner 13374 | -6/Data Miner | Entered Proximity Caves 13464 | -5/Proximity Caves | Spotted B-75 Beast 13476 | -5/Proximity Caves | Escorted by Enhanced Grunt 13533 | -5/Proximity Caves | Lost 3 parts (1p1u1w) 14050 | -5/Proximity Caves | Found Prototype Device 14692 | -5/Proximity Caves | Core integrity fell below 50% 14739 | -5/Proximity Caves | Learned Factory terminal intel 14751 | -5/Proximity Caves | Lost 3 parts (1p1n1w) 14983 | -5/Proximity Caves | Attracted the attention of an 0b10 checkpoint 15023 | -5/Proximity Caves | Discovered new exit (range 8) 15047 | -5/Proximity Caves | Entered Factory 15047 | -5/Factory | Evolved 2 slots: Utility x1, Weapon x1 15048 | -5/Factory | Loaded intel: 86 trap records 15049 | -5/Factory | Loaded intel: 28 terminal locations 15049 | -5/Factory | Identified Exp. Thermal Shield 15052 | -5/Factory | Lost 4 parts (1n3u) 15257 | -5/Factory | Garrison activated, responded to threat 15339 | -5/Factory | Lost 17 parts (2p4n4u7w) 15463 | -5/Factory | Fabricated Arm. Wheel? 15610 | -5/Factory | Build established: Scavenger-Tank 15976 | -5/Factory | Lost 4 parts (2p2w) 16087 | -5/Factory | Spotted B-75 Beast 16096 | -5/Factory | Core integrity fell below 50% 16283 | -5/Factory | Fabricated B-60 Warrior (x3) 16287 | -5/Factory | Lost 6 parts (1p2n1u2w) 16325 | -5/Factory | Lost 3 allies 16407 | -5/Factory | Discovered new exit (range 4) 16421 | -5/Factory | Fabricated Arm. Wheel? 16471 | -5/Factory | Entered Upper Caves 16858 | -5/Upper Caves | Build established: Scavenger-Gunner 16859 | -5/Upper Caves | Attracted the attention of an 0b10 checkpoint 16895 | -5/Upper Caves | Lost 4 parts (1p1n2u) 16898 | -5/Upper Caves | Learned location of 2 exits from Factory 16997 | -5/Upper Caves | Discovered new exit (range 14) 17067 | -5/Upper Caves | Entered another Upper Caves area 17067 | -5/Upper Caves | Spotted B-75 Beast 17075 | -5/Upper Caves | Attracted the attention of an 0b10 checkpoint 17135 | -5/Upper Caves | Destroyed B-75 Beast 17147 | -5/Upper Caves | Lost 8 parts (2n4u2w) 17166 | -5/Upper Caves | Build established: Scavenger-Tank 18380 | -5/Upper Caves | Discovered new exit (range 4) 18385 | -5/Upper Caves | Entered Zhirov 18385 | -5/Zhirov | Discovered new exit (range 3) 18404 | -5/Zhirov | Entered Proximity Caves 18454 | -4/Proximity Caves | Core integrity fell below 20% 18477 | -4/Proximity Caves | Lost 4 parts (2n1u1w) 19092 | -4/Proximity Caves | System corruption reached 10% 19178 | -4/Proximity Caves | Build established: Scavenger-Gunner 19294 | -4/Proximity Caves | Spotted B-86 Titan 19325 | -4/Proximity Caves | Destroyed by B-86 Titan with Hardcell Cannon Last Messages --------------- 19298_ Knocked back. 19298_ Penetrated by Slug. 19300_ B-86 Titan activates siege mode. 19301_ Penetrated by Slug. 19302_ FLTWWZOK9#Q,ZVCFCZEOS/IVPHL NWFCCJ 19304_ Imp. Cryofiber Web destroyed. 19304_ Field Propulsion Drive destroyed. 19304_ Penetrated by Slug. 19307_ Field Laser destroyed. 19307_ Knocked back. 19311_ Penetrated by Slug. 19311_ Slug penetrates Wall. 19312_ Acquired 1 matter. 19314_ Penetrated by Slug. 19315_ Acquired 5 matter. 19316_ B-86 Titan exits siege mode. 19317_ System corrupted: Heat flow error (+242). 19317_ Penetrated by Slug. 19320_ Slug penetrates Wall. 19322_ Acquired 7 matter. Map ----- +----------------------------------------------------+ | ## #????# ####### #???? ???????? | | #????# #???? #?????????? | | ## #????# ##?## #?????????? | | ?########## ### #??????????? | | #????????## #???????????? | | #????????# ##??????????? | | " "" #???????# ##?????????? | | " "" #???????## ##????????? | | " " #????????## #????????? | | """" #???????## #????????? | | "" ##??????## ##????????? | | """" #####??????# ##?????????? | | ### ##??# #####?## ##??????????? | | """" #??###???# ## ##?# ## #???????????? | | """" ####?????# ## #?## ### #????????? | | """ #?????# ## #?## #?? #???????? | | " #?????# #?## ##?? #??????? | | " #?????# ### ##?? ??????? | | """ ##?????## ## #?? ??????? | | ###???????## ##?? ??????? | | #??????????## #???# ???????? | | #???###########"### #???? ???????? | | ##???# ### #??# #???? #### ????????? | | ##?????# #"#???# #???? ??????????????? | | ##???????# % "##### %#????????????????????? | | #????????# #; @ #????????????????????? | | # ? "# % #????????????????????? | | ; #????????????????????? | | #### BB ;;#### ##????????????????????? | | ## ####??# BB #????### ##?????????????????????? | | ??###?????# ????????###??????????????????????? | | ??????????# ??????????????????????????????????? | | ??????????# ??????????????????????????????????? | | ??????????####???????????????????????????????????? | | ?????????????????????????????????????????????????? | | ?????????????????????????????????????????????????? | | ?????????????????????????????????????????????????? | | ?????????????????????????????????????????????????? | | ?????????????????????????????????????????????????? | | ?????????????????????????????????????????????????? | | ?????????????????????????????????????????????????? | | ?????????????????????????????????????????????????? | | ?????????????????????????????????????????????????? | | ?????????????????????????????????????????????????? | | ?????????????????????????????????????????????????? | | ?????????????????????????????????????????????????? | | | | | | | | | +----------------------------------------------------+ Best States ------------- Heat Dissipation 111 Energy Generation 29 Energy Capacity 470 Matter Stores 500 Matter Capacity 500 Sight Range 16 Terrain Scan Density 10 Cloak Strength 2 Additional Mass Support 6 Base Temperature (-) 150 Armor Coverage 600 Resistance: TH 30 Core Shielding 20 Power Shielding 66 Evasion (%) 50 Targeting Accuracy 12 Melee Accuracy 8 Target Analysis 8 Recoil Reduction 6 Offensive Hacking 10 Item Schematics ----------------- Arm. Wheel | -9/Materials | Scanalyzed Hrd. Light Armor Plating | -9/Materials | Scanalyzed Rnf. Ion Engine | -8/Materials | Scanalyzed Core Shielding | -8/Materials | Scanalyzed Imp. Targeting Computer | -8/Materials | Scanalyzed Imp. Cooling System | -8/Materials | Scanalyzed Hvy. Armor Plating | -8/Storage | Hacked Arm. Treads | -6/Factory | Scanalyzed Imp. Medium Armor Plating | -6/Factory | Scanalyzed Combat Drone Bay | -6/Data Miner | Free Lgt. Regenerative Plating | -6/Data Miner | Free Enh. Flexi-carbon Leg | -6/Data Miner | Free Imp. Matter Compressor | -6/Data Miner | Free Kinetic Spear | -6/Data Miner | Free Field Propulsion Array | -6/Data Miner | Free Imp. Force Booster | -6/Data Miner | Free Imp. Linear Gravjet | -6/Data Miner | Free Dispersion Rifle | -6/Data Miner | Free Hardcell Cannon | -6/Data Miner | Free Q-thruster | -6/Data Miner | Free Nova Cannon | -6/Data Miner | Free Carbon-fiber Leg | -5/Factory | Scanalyzed Adv. Heat Sink | -5/Factory | Scanalyzed Robot Schematics ------------------ O-32 Director | -6/Data Miner | Free M-22 Extractor | -6/Data Miner | Free S-27 Virus | -6/Data Miner | Free R-10 Processor | -6/Data Miner | Free B-60 Warrior | -6/Data Miner | Free Fabricated ------------ Rnf. Ion Engine | x2 | -7/Factory Arm. Wheel | x2 | -5/Factory B-60 Warrior | x3 | -5/Factory Arm. Wheel | x2 | -5/Factory Alien Tech Used ----------------- None Achievements -------------- Adventurer My Command Is Your Wish Challenges ------------ None Game ------ Seed SignalBottomlessDissipator Manual? 0 Play Time 02:59:44 Cumulative 237.6 hours Start 2024.04.08 @ 18:55:18 End 2024.04.09 @ 13:35:10 Sessions 3 Manual Loads 0 Difficulty Rogue Special Mode None Game No. 181 Rogue 169 Adventurer 12 Explorer 0 Win Type - Total 1 Types 1/0/0/0/0/0/0/0/0 Lore% 30 Gallery% 48 Achievement% 35 Wizard Run 0 Options --------- Layout 1 ASCII 0 Keyboard 0 Movement Mouse Keybinds 0 Fullscreen 1 Font 32/SmallcapsGlow Map View 77x35 Zoom Use 0% Tactical HUD 1 Map Filters NONE Filters NONE Steam 1 RUN: ab59265a-0321-47ff-9316-18f7f54b6870